bitfinex/quotes_BTCUSD_20250812
["timestamp","ask_amount","ask_price","bid_price","bid_amount"]
[1755030197096,0.16909176,119910.0,119900.0,5.52784]
[1755030199022,0.16909176,119910.0,119900.0,6.02544229]
[1755030199234,0.16909176,119910.0,119900.0,5.52784]
[1755030199645,0.16909176,119910.0,119900.0,5.53086]
[1755030199854,0.16909176,119910.0,119900.0,6.02846229]
[1755030201099,0.16909176,119910.0,119900.0,5.93334554]
[1755030201236,0.16161176,119910.0,119900.0,5.93334554]
[1755030201437,0.16161176,119910.0,119900.0,5.61346325]
[1755030201637,0.16161176,119910.0,119900.0,5.93334554]
[1755030201844,0.16161176,119910.0,119900.0,6.11106554]
[1755030203842,0.16161176,119910.0,119900.0,6.10804554]
[1755030204048,0.16161176,119910.0,119900.0,5.61044325]
[1755030204885,0.16161176,119910.0,119900.0,6.12018352]
[1755030205518,0.16161176,119910.0,119900.0,6.12528352]
[1755030205723,0.16161176,119910.0,119900.0,5.61554325]
[1755030205943,0.16161176,119910.0,119900.0,6.12528352]
[1755030206157,0.16161176,119910.0,119900.0,5.61554325]
[1755030206563,0.16161176,119910.0,119900.0,6.12528352]
[1755030207310,0.16161176,119910.0,119900.0,5.61554325]
[1755030207505,0.16161176,119910.0,119900.0,6.12528352]
[1755030209592,0.16161176,119910.0,119900.0,5.61554325]
[1755030209907,0.16031176,119910.0,119900.0,6.12528352]
[1755030210457,0.16031176,119910.0,119900.0,5.61554325]
[1755030210640,0.16031176,119910.0,119900.0,6.12528352]
[1755030214264,0.16031176,119910.0,119900.0,7.24728152]
[1755030214463,0.16031176,119910.0,119900.0,7.27230452]
[1755030215992,0.15931176,119910.0,119900.0,7.27230452]
[1755030218413,0.15931176,119910.0,119900.0,6.49251452]
[1755030218638,0.15931176,119910.0,119900.0,6.15030652]
[1755030219104,0.15931176,119910.0,119900.0,6.38630152]
[1755030219337,0.15931176,119910.0,119900.0,6.35642152]
[1755030220551,0.15931176,119910.0,119900.0,6.15030652]
[1755030220984,0.15931176,119910.0,119900.0,6.58504752]
[1755030222273,0.15931176,119910.0,119900.0,6.28737452]
[1755030223005,0.15931176,119910.0,119900.0,6.27623252]
[1755030223184,0.15931176,119910.0,119900.0,6.15030652]
[1755030223381,0.16049176,119910.0,119900.0,4.9511113]
[1755030223608,0.16049176,119910.0,119900.0,5.46085157]
[1755030224565,0.16049176,119910.0,119900.0,4.9511113]
[1755030224771,0.16049176,119910.0,119900.0,5.46387157]
[1755030224956,0.16149176,119910.0,119900.0,5.46387157]
[1755030225637,0.16149176,119910.0,119900.0,5.46589157]
[1755030225850,0.16031176,119910.0,119900.0,5.46589157]
[1755030228223,0.16161176,119910.0,119900.0,5.46589157]
[1755030228429,0.16161176,119910.0,119900.0,4.9561513]
[1755030228629,0.16161176,119910.0,119900.0,5.46085157]
[1755030229072,0.16161176,119910.0,119900.0,4.43496975]
[1755030229254,0.16161176,119910.0,119900.0,4.33013617]
[1755030229450,0.16161176,119910.0,119900.0,4.77660808]
[1755030229650,0.16161176,119910.0,119900.0,3.95303582]
[1755030230859,0.16161176,119910.0,119900.0,4.46277609]
[1755030232065,0.16161176,119910.0,119900.0,3.95303582]
[1755030232293,0.16161176,119910.0,119900.0,4.46277609]
[1755030233007,0.16161176,119910.0,119900.0,3.95303582]
[1755030233208,0.16031176,119910.0,119900.0,4.46781609]
[1755030236852,0.16031176,119910.0,119900.0,3.95807582]
[1755030237067,0.16031176,119910.0,119900.0,4.46781609]
[1755030241146,0.16031176,119910.0,119900.0,3.91034141]
[1755030241813,0.16031176,119910.0,119900.0,4.42008168]
[1755030242555,0.16031176,119910.0,119900.0,4.62008168]
[1755030243161,0.16031176,119910.0,119900.0,4.11034141]
[1755030243370,0.16031176,119910.0,119900.0,4.62008168]
[1755030246299,0.16031176,119910.0,119900.0,4.11034141]
[1755030246731,0.16031176,119910.0,119900.0,4.62008168]
[1755030247769,0.16031176,119910.0,119900.0,4.11034141]
[1755030247962,0.16031176,119910.0,119900.0,4.62008168]
[1755030248625,0.16031176,119910.0,119900.0,4.77008168]
[1755030249258,0.16031176,119910.0,119900.0,4.26034141]
[1755030249669,0.16031176,119910.0,119900.0,4.77008168]
[1755030250322,0.16031176,119910.0,119900.0,7.57830941]
[1755030250514,0.16031176,119910.0,119900.0,6.78090187]
[1755030250732,0.15931176,119910.0,119900.0,6.2711616]
[1755030250950,0.15931176,119910.0,119900.0,6.75498868]
[1755030251155,0.15931176,119910.0,119900.0,6.24524841]
[1755030251369,0.15931176,119910.0,119900.0,6.75498868]
[1755030251590,0.15931176,119910.0,119900.0,6.23377741]
[1755030251796,0.15931176,119910.0,119900.0,6.74351768]
[1755030252582,0.15931176,119910.0,119900.0,6.23377741]
[1755030252782,0.15931176,119910.0,119900.0,6.23845268]
[1755030253878,0.15931176,119910.0,119900.0,6.23945268]
[1755030254432,0.15931176,119910.0,119900.0,6.75019295]
[1755030254637,0.15931176,119910.0,119900.0,5.7566256]
[1755030254832,0.15931176,119910.0,119900.0,6.24045268]
[1755030255677,0.15870843,119910.0,119900.0,6.24045268]
[1755030256483,0.15870843,119910.0,119900.0,5.73071241]
[1755030256656,0.15870843,119910.0,119900.0,6.24045268]
[1755030256851,0.15870843,119910.0,119900.0,5.71573341]
[1755030257104,0.15870843,119910.0,119900.0,4.98871068]
[1755030257308,0.15870843,119910.0,119900.0,5.21373068]
[1755030259381,0.15870843,119910.0,119900.0,4.70399041]
[1755030259551,0.15870843,119910.0,119900.0,4.50399041]
[1755030259723,0.16000843,119910.0,119900.0,4.50399041]
[1755030259931,0.16000843,119910.0,119900.0,4.59710168]
[1755030260334,0.16000843,119910.0,119900.0,4.28736141]
[1755030260535,0.15870843,119910.0,119900.0,4.59710168]
[1755030260720,0.16000843,119910.0,119900.0,4.59710168]
[1755030261614,0.15870843,119910.0,119900.0,4.59710168]
[1755030261819,0.15870843,119910.0,119900.0,4.08736141]
[1755030262021,0.15870843,119910.0,119900.0,4.59710168]
[1755030262919,0.15988843,119910.0,119900.0,4.44710168]
[1755030263134,0.15988843,119910.0,119900.0,4.44508168]
[1755030263384,0.15988843,119910.0,119900.0,3.93534141]
[1755030263587,0.15988843,119910.0,119900.0,4.44508168]
[1755030264414,0.15988843,119910.0,119900.0,3.93534141]
[1755030264656,0.15988843,119910.0,119900.0,4.44508168]
[1755030265183,0.15988843,119910.0,119900.0,4.44206168]
[1755030265703,0.15988843,119910.0,119900.0,4.44014168]
[1755030265898,0.15988843,119910.0,119900.0,3.93040141]
[1755030266108,0.15988843,119910.0,119900.0,4.43914168]
[1755030266310,0.15988843,119910.0,119900.0,4.44221168]
[1755030266728,0.15988843,119910.0,119900.0,3.93147141]
[1755030267139,0.15988843,119910.0,119900.0,4.44121168]
[1755030267351,0.15988843,119910.0,119900.0,3.44560084]
[1755030267552,0.15988843,119910.0,119900.0,2.94863402]
[1755030267553,0.17814745,119910.0,119900.0,2.94863402]
[1755030267879,0.17814745,119910.0,119900.0,2.85970833]
[1755030268087,0.17814745,119910.0,119900.0,2.69069352]
[1755030268262,0.17814745,119910.0,119900.0,2.48464619]
[1755030268490,0.17814745,119910.0,119900.0,2.37790828]
[1755030268699,0.17814745,119910.0,119900.0,2.17903591]
[1755030268903,0.17814745,119910.0,119900.0,2.03886922]
[1755030269116,0.17814745,119910.0,119900.0,1.833219]
[1755030269329,0.17814745,119910.0,119900.0,1.72705857]
[1755030269559,0.17814745,119910.0,119900.0,1.50558107]
[1755030270176,0.18014745,119910.0,119900.0,0.96822612]
[1755030270382,0.17933745,119910.0,119900.0,0.85565227]
[1755030270587,0.17933745,119910.0,119900.0,0.73324619]
[1755030270813,0.17933745,119910.0,119900.0,0.49550967]
[1755030271037,0.17933745,119910.0,119900.0,0.83306698]
[1755030271243,0.17933745,119910.0,119900.0,0.15166577]
[1755030271451,0.17933745,119910.0,119890.0,0.228309]
[1755030271452,0.16680567,119900.0,119890.0,0.228309]
[1755030271657,0.16680567,119900.0,119890.0,0.91434927]
[1755030272522,0.16680567,119900.0,119890.0,0.98119698]
[1755030273315,0.16780567,119900.0,119890.0,0.47145671]
[1755030273521,0.16780567,119900.0,119890.0,1.06392023]
[1755030273730,0.16780567,119900.0,119890.0,0.48733225]
[1755030273988,0.16780567,119900.0,119890.0,1.26392023]
[1755030274690,0.16780567,119900.0,119890.0,0.68733225]
[1755030274903,0.16780567,119900.0,119890.0,1.19707252]
[1755030275994,0.16780567,119900.0,119890.0,1.26392023]
[1755030276397,0.16680567,119900.0,119890.0,1.26392023]
[1755030276598,0.16680567,119900.0,119890.0,0.68733225]
[1755030276822,0.16680567,119900.0,119890.0,1.19707252]
[1755030277254,0.16680567,119900.0,119890.0,0.68733225]
[1755030277454,0.16680567,119900.0,119890.0,1.19707252]
[1755030278060,0.16680567,119900.0,119890.0,0.68733225]
[1755030278271,0.16680567,119900.0,119890.0,1.19707252]
[1755030279464,0.16680567,119900.0,119890.0,1.64992252]
[1755030283249,0.16680567,119900.0,119890.0,1.65092252]
[1755030283630,0.16680567,119900.0,119890.0,1.14118225]
[1755030283839,0.16680567,119900.0,119890.0,1.65192252]
[1755030284789,0.16680567,119900.0,119890.0,1.14218225]
[1755030284951,0.16680567,119900.0,119890.0,1.65192252]
[1755030286090,0.16680567,119900.0,119890.0,1.38454252]
[1755030286302,0.16680567,119900.0,119890.0,1.38660252]
[1755030286509,0.16680567,119900.0,119890.0,0.87686225]
[1755030286663,0.16680567,119900.0,119890.0,1.36682652]
[1755030287904,0.16680567,119900.0,119890.0,1.30446052]
[1755030290218,0.16680567,119900.0,119890.0,0.68933225]
[1755030290657,0.16680567,119900.0,119890.0,1.19907252]
[1755030291301,0.16680567,119900.0,119890.0,0.68933225]
[1755030291506,0.16680567,119900.0,119890.0,1.19907252]
[1755030291709,0.16810567,119900.0,119890.0,0.68933225]
[1755030292183,0.16810567,119900.0,119890.0,1.19907252]
[1755030292407,0.16810567,119900.0,119890.0,0.99903252]
[1755030292607,0.16680567,119900.0,119890.0,0.99903252]
[1755030292927,0.16680567,119900.0,119890.0,0.48929225]
[1755030293129,0.16680567,119900.0,119890.0,0.99791252]
[1755030293334,0.16680567,119900.0,119890.0,0.48817225]
[1755030293529,0.16680567,119900.0,119890.0,0.08272325]
[1755030293530,0.16810567,119900.0,119890.0,0.08272325]
[1755030293764,0.16681958,119890.0,119880.0,3.0]
[1755030293982,0.16893958,119890.0,119880.0,3.68278027]
[1755030294188,0.16893958,119890.0,119880.0,3.70780827]
[1755030294396,0.16681958,119890.0,119880.0,3.70986827]
[1755030294595,0.16893958,119890.0,119880.0,3.200128]
[1755030294838,0.16893958,119890.0,119880.0,3.70986827]
[1755030295253,0.16893958,119890.0,119880.0,3.70780827]
[1755030295668,0.16893958,119890.0,119880.0,3.70986827]
[1755030296290,0.16893958,119890.0,119880.0,3.200128]
[1755030296496,0.16893958,119890.0,119880.0,3.71086827]
[1755030296700,0.16893958,119890.0,119880.0,3.70880827]
[1755030296909,0.16893958,119890.0,119880.0,3.200068]
[1755030297115,0.17205958,119890.0,119880.0,3.027028]
[1755030297333,0.17205958,119890.0,119880.0,3.199868]
[1755030297546,0.17205958,119890.0,119880.0,3.17484]
[1755030297751,0.17205958,119890.0,119880.0,3.17384]
[1755030297958,0.17205958,119890.0,119880.0,3.68358027]
[1755030298165,0.17205958,119890.0,119880.0,3.17384]
[1755030298574,0.17205958,119890.0,119880.0,3.68358027]
[1755030298784,0.17205958,119890.0,119880.0,3.17384]
[1755030299218,0.17205958,119890.0,119880.0,3.17284]
[1755030299636,0.17205958,119890.0,119880.0,3.68258027]
[1755030299835,0.17205958,119890.0,119880.0,3.29594833]
[1755030300059,0.17205958,119890.0,119880.0,3.10065986]
[1755030300274,0.17205958,119890.0,119880.0,2.4053312]
[1755030300478,0.17205958,119890.0,119880.0,2.91507147]
[1755030300679,0.16893958,119890.0,119880.0,2.4050912]
[1755030300919,0.16681958,119890.0,119880.0,2.91988147]
[1755030301176,0.16681958,119890.0,119880.0,3.26988147]
[1755030301422,0.16681958,119890.0,119880.0,3.77962174]
[1755030301645,0.16781958,119890.0,119880.0,2.7601412]
[1755030302062,0.16781958,119890.0,119880.0,3.26988147]
[1755030302265,0.16781958,119890.0,119880.0,3.77962174]
[1755030302488,0.16781958,119890.0,119880.0,2.7601412]
[1755030302960,0.16781958,119890.0,119880.0,3.26988147]
[1755030303383,0.16781958,119890.0,119880.0,2.7601412]
[1755030303593,0.16881958,119890.0,119880.0,3.26988147]
[1755030304240,0.16881958,119890.0,119880.0,2.7601412]
[1755030304455,0.16881958,119890.0,119880.0,3.26988147]
[1755030304667,0.16881958,119890.0,119880.0,3.8641032]
[1755030304868,0.16881958,119890.0,119880.0,4.88358374]
[1755030305087,0.16881958,119890.0,119880.0,4.51600974]
[1755030305325,0.16881958,119890.0,119880.0,3.97868147]
[1755030305730,0.16881958,119890.0,119880.0,3.0065032]
[1755030305943,0.16881958,119890.0,119880.0,3.51624347]
[1755030307234,0.16881958,119890.0,119880.0,2.7601412]
[1755030307438,0.17081958,119890.0,119880.0,3.11483147]
[1755030308294,0.17391958,119890.0,119880.0,2.4050912]
[1755030308500,0.17391958,119890.0,119880.0,2.91483147]
[1755030308710,0.17081958,119890.0,119880.0,2.91644147]
[1755030308914,0.17081958,119890.0,119880.0,2.91948147]
[1755030309142,0.17081958,119890.0,119880.0,2.91443147]
[1755030309557,0.17391958,119890.0,119880.0,2.91443147]
[1755030310207,0.17391958,119890.0,119880.0,2.74223147]
[1755030310416,0.17391958,119890.0,119880.0,2.53701453]
[1755030310616,0.17391958,119890.0,119880.0,2.02727426]
[1755030310903,0.17391958,119890.0,119880.0,2.53701453]
[1755030311724,0.17081958,119890.0,119880.0,2.53701453]
[1755030312807,0.17081958,119890.0,119880.0,1.60550856]
[1755030313014,0.17391958,119890.0,119880.0,1.47594518]
[1755030313226,0.17391958,119890.0,119880.0,1.66204453]
[1755030313426,0.17391958,119890.0,119880.0,1.83396453]
[1755030313617,0.17391958,119890.0,119880.0,0.94775402]
[1755030313828,0.17391958,119890.0,119880.0,0.89443853]
[1755030314072,0.17391958,119890.0,119880.0,0.42052014]
[1755030314265,0.17391958,119890.0,119880.0,0.49651324]
[1755030314473,0.17391958,119890.0,119880.0,0.32980128]
[1755030315615,0.1668335,119880.0,119870.0,0.73506511]
[1755030315817,0.1688335,119880.0,119870.0,0.73506511]
[1755030315957,0.1688335,119880.0,119870.0,0.22532484]
[1755030316353,0.1688335,119880.0,119870.0,0.73506511]
[1755030316575,0.1688335,119880.0,119870.0,0.22532484]
[1755030316757,0.1688335,119880.0,119870.0,0.3718]
[1755030316758,0.1719335,119880.0,119870.0,0.3718]
[1755030316902,0.16684741,119870.0,119860.0,0.00304]
[1755030317109,0.16884741,119870.0,119860.0,0.51189616]
[1755030317313,0.16884741,119870.0,119860.0,0.51493616]
[1755030318263,0.16884741,119870.0,119860.0,0.68661616]
[1755030318467,0.16884741,119870.0,119860.0,0.68761616]
[1755030318683,0.16884741,119870.0,119860.0,0.17787589]
[1755030319094,0.16884741,119870.0,119860.0,0.00619589]
[1755030319296,0.16884741,119870.0,119860.0,0.68753616]
[1755030319689,0.16884741,119870.0,119860.0,0.68653616]
[1755030320477,0.16684741,119870.0,119860.0,0.68653616]
[1755030321875,0.16684741,119870.0,119860.0,0.17679589]
[1755030322080,0.16684741,119870.0,119860.0,0.68653616]
[1755030326244,0.16684741,119870.0,119860.0,0.17679589]
[1755030326444,0.16684741,119870.0,119860.0,0.68653616]
[1755030330992,0.16684741,119870.0,119860.0,0.83610712]
[1755030331205,0.16684741,119870.0,119860.0,3.20510039]
[1755030331409,0.16684741,119870.0,119860.0,3.43101358]
[1755030331828,0.16684741,119870.0,119860.0,3.45604358]
[1755030332481,0.16684741,119870.0,119860.0,3.43013039]
[1755030332629,0.16684741,119870.0,119860.0,3.36328268]
[1755030332832,0.16684741,119870.0,119860.0,2.92039012]
[1755030333826,0.16684741,119870.0,119860.0,2.92139012]
[1755030334173,0.16684741,119870.0,119860.0,2.92239012]
[1755030334792,0.16684741,119870.0,119860.0,2.85554241]
[1755030336318,0.16684741,119870.0,119860.0,3.36528268]
[1755030336539,0.16684741,119870.0,119860.0,2.34580214]
[1755030336767,0.16684741,119870.0,119860.0,2.85554241]
[1755030337195,0.16684741,119870.0,119860.0,2.34580214]
[1755030337393,0.16684741,119870.0,119860.0,2.85554241]
[1755030337813,0.16684741,119870.0,119860.0,3.05566241]
[1755030339335,0.16684741,119870.0,119860.0,3.56540268]
[1755030339779,0.16684741,119870.0,119860.0,2.54592214]
[1755030339986,0.16684741,119870.0,119860.0,3.56540268]
[1755030340190,0.16684741,119870.0,119860.0,3.05566241]
[1755030342312,0.16684741,119870.0,119860.0,3.56540268]
[1755030348515,0.16684741,119870.0,119860.0,3.05566241]
[1755030350225,0.16684741,119870.0,119860.0,3.56540268]
[1755030350426,0.16684741,119870.0,119860.0,3.05566241]
[1755030350795,0.16684741,119870.0,119860.0,3.56540268]
[1755030352221,0.16684741,119870.0,119860.0,2.54592214]
[1755030352457,0.16684741,119870.0,119860.0,3.56540268]
[1755030352718,0.16684741,119870.0,119860.0,3.05566241]
[1755030353313,0.16684741,119870.0,119860.0,3.56540268]
[1755030358964,0.16684741,119870.0,119860.0,2.54592214]
[1755030359173,0.16684741,119870.0,119860.0,3.56540268]
[1755030360104,0.16684741,119870.0,119860.0,3.05566241]
[1755030360302,0.16897741,119870.0,119860.0,2.19677241]
[1755030360510,0.16897741,119870.0,119860.0,1.92725841]
[1755030360731,0.16897741,119870.0,119860.0,1.41751814]
[1755030360928,0.17198741,119870.0,119860.0,1.92524841]
[1755030361143,0.17198741,119870.0,119860.0,1.41550814]
[1755030361353,0.16897741,119870.0,119860.0,1.92524841]
[1755030362452,0.16897741,119870.0,119860.0,1.75364841]
[1755030362690,0.17198741,119870.0,119860.0,1.33875941]
[1755030362921,0.17198741,119870.0,119860.0,0.82901914]
[1755030363132,0.17198741,119870.0,119860.0,1.33875941]
[1755030363340,0.17198741,119870.0,119860.0,1.43920241]
[1755030363571,0.17198741,119870.0,119860.0,1.43820241]
[1755030363768,0.17198741,119870.0,119860.0,1.43720241]
[1755030365203,0.17198741,119870.0,119860.0,0.92746214]
[1755030365405,0.17198741,119870.0,119860.0,1.43720241]
[1755030366069,0.17198741,119870.0,119860.0,1.23720241]
[1755030366283,0.17198741,119870.0,119860.0,0.72746214]
[1755030366509,0.17198741,119870.0,119860.0,1.43720241]
[1755030366739,0.17198741,119870.0,119860.0,1.41217241]
[1755030367145,0.17198741,119870.0,119860.0,1.43720341]
[1755030367863,0.16897741,119870.0,119860.0,1.43720341]
[1755030368502,0.16897741,119870.0,119860.0,0.72746314]
[1755030368713,0.17198741,119870.0,119860.0,1.23720341]
[1755030371152,0.16897741,119870.0,119860.0,1.23720341]
[1755030371993,0.16897741,119870.0,119860.0,1.23927341]
[1755030372190,0.16897741,119870.0,119860.0,1.21424241]
[1755030372615,0.16897741,119870.0,119860.0,0.70450214]
[1755030372836,0.16897741,119870.0,119860.0,1.21424241]
[1755030373053,0.16897741,119870.0,119860.0,1.21217241]
[1755030373503,0.16897741,119870.0,119860.0,1.23720241]
[1755030376351,0.16897741,119870.0,119860.0,1.13675941]
[1755030376552,0.16897741,119870.0,119860.0,0.98675941]
[1755030377937,0.16897741,119870.0,119860.0,0.47701914]
[1755030378141,0.16897741,119870.0,119860.0,0.98675941]
[1755030378351,0.16897741,119870.0,119860.0,0.47701914]
[1755030378620,0.17198741,119870.0,119860.0,0.87900616]
[1755030378796,0.17198741,119870.0,119860.0,0.36926589]
[1755030378969,0.17198741,119870.0,119860.0,0.87900616]
[1755030379575,0.17198741,119870.0,119860.0,0.36926589]
[1755030380011,0.17198741,119870.0,119860.0,0.87900616]
[1755030383216,0.16897741,119870.0,119860.0,0.87900616]
[1755030383874,0.16897741,119870.0,119860.0,0.36926589]
[1755030384072,0.16897741,119870.0,119860.0,0.87900616]
[1755030385434,0.16897741,119870.0,119860.0,0.36926589]
[1755030385642,0.16897741,119870.0,119860.0,0.87900616]
[1755030386405,0.16897741,119870.0,119860.0,0.88408616]
[1755030386781,0.16684741,119870.0,119860.0,2.26335314]
[1755030387002,0.16684741,119870.0,119860.0,2.49607639]
[1755030387204,0.16684741,119870.0,119860.0,1.47659585]
[1755030387409,0.16684741,119870.0,119860.0,1.18365712]
[1755030388693,0.16897741,119870.0,119860.0,1.11172941]
[1755030388861,0.16897741,119870.0,119860.0,1.11379941]
[1755030389066,0.16897741,119870.0,119860.0,1.11172941]
[1755030389296,0.17196741,119870.0,119860.0,1.11172941]
[1755030389673,0.17196741,119870.0,119860.0,0.60198914]
[1755030389878,0.17196741,119870.0,119860.0,1.02900616]
[1755030390480,0.17196741,119870.0,119860.0,0.82888616]
[1755030390856,0.16897741,119870.0,119860.0,0.31914589]
[1755030390992,0.16897741,119870.0,119860.0,0.82888616]
[1755030391591,0.16897741,119870.0,119860.0,0.83103616]
[1755030391797,0.16684741,119870.0,119860.0,0.83427616]
[1755030393295,0.16898741,119870.0,119860.0,0.32453589]
[1755030393479,0.16898741,119870.0,119860.0,0.31914589]
[1755030393683,0.16898741,119870.0,119860.0,0.82888616]
[1755030394229,0.17197741,119870.0,119860.0,0.82888616]
[1755030395240,0.17197741,119870.0,119860.0,0.67888616]
[1755030395436,0.17197741,119870.0,119860.0,0.50988616]
[1755030395639,0.17197741,119870.0,119860.0,0.16714589]
[1755030395875,0.17197741,119870.0,119860.0,0.67688616]
[1755030396036,0.17197741,119870.0,119860.0,0.29902697]
[1755030396243,0.17197741,119870.0,119860.0,0.16688]
[1755030396680,0.17297741,119870.0,119860.0,0.16688]
[1755030396910,0.16686133,119860.0,119850.0,3.54304027]
[1755030397112,0.16900133,119860.0,119850.0,3.54519027]
[1755030397369,0.16686133,119860.0,119850.0,3.54843027]
[1755030397952,0.16686133,119860.0,119850.0,3.71527027]
[1755030398337,0.16686133,119860.0,119850.0,3.20553]
[1755030398595,0.16686133,119860.0,119850.0,3.71527027]
[1755030398820,0.16900133,119860.0,119850.0,2.62832541]
[1755030399011,0.6817316,119860.0,119850.0,2.6023497]
[1755030399169,0.6817316,119860.0,119850.0,2.37493057]
[1755030399371,0.6817316,119860.0,119850.0,2.26165626]
[1755030399372,0.17199133,119860.0,119850.0,2.26165626]
[1755030399598,0.17199133,119860.0,119850.0,2.1506879]
[1755030399805,0.17199133,119860.0,119850.0,2.05645651]
[1755030400008,0.19702933,119860.0,119850.0,1.78796135]
[1755030400242,0.19702933,119860.0,119850.0,1.64573599]
[1755030400391,0.19702933,119860.0,119850.0,1.41360495]
[1755030400577,0.7067696,119860.0,119850.0,1.29742928]
[1755030400982,0.7077696,119860.0,119850.0,0.86734943]
[1755030401235,0.19802933,119860.0,119850.0,0.74604501]
[1755030402026,0.19902933,119860.0,119850.0,0.74604501]
[1755030402431,0.19603933,119860.0,119850.0,0.74604501]
[1755030402671,0.19289933,119860.0,119850.0,0.75143501]
[1755030402982,0.19489933,119860.0,119850.0,0.75143501]
[1755030403699,0.16986133,119860.0,119850.0,1.26117528]
[1755030405414,0.16986133,119860.0,119850.0,0.75143501]
[1755030405619,0.16986133,119860.0,119850.0,1.26117528]
[1755030406026,0.16986133,119860.0,119850.0,0.75143501]
[1755030406231,0.16986133,119860.0,119850.0,1.34389853]
[1755030406441,0.16986133,119860.0,119850.0,1.49389853]
[1755030407199,0.16786133,119860.0,119850.0,1.69389853]
[1755030407404,0.16686133,119860.0,119850.0,1.76180172]
[1755030407587,0.16786133,119860.0,119850.0,1.73588853]
[1755030408380,0.16686133,119860.0,119850.0,1.73588853]
[1755030409952,0.18531035,119860.0,119850.0,1.73588853]
[1755030410166,0.18431035,119860.0,119850.0,1.22614826]
[1755030410374,0.18431035,119860.0,119850.0,1.73588853]
[1755030410585,0.16686133,119860.0,119850.0,1.73588853]
[1755030411240,0.16686133,119860.0,119850.0,1.73688853]
[1755030411446,0.16686133,119860.0,119850.0,1.73788853]
[1755030412725,0.16686133,119860.0,119850.0,1.76291753]
[1755030413154,0.16686133,119860.0,119850.0,1.21118726]
[1755030416371,0.18431035,119860.0,119850.0,1.21118726]
[1755030418565,0.18431035,119860.0,119850.0,1.01118726]
[1755030418779,0.18431035,119860.0,119850.0,1.21118726]
[1755030419200,0.18431035,119860.0,119850.0,1.01118726]
[1755030419471,0.18431035,119860.0,119850.0,1.21118726]
[1755030420081,0.18431035,119860.0,119850.0,1.72092753]
[1755030420555,0.18431035,119860.0,119850.0,1.22786726]
[1755030420773,0.18431035,119860.0,119850.0,1.21118726]
[1755030421001,0.18431035,119860.0,119850.0,1.72092753]
[1755030423463,0.18431035,119860.0,119850.0,1.21118726]
[1755030423740,0.18431035,119860.0,119850.0,1.72092753]
[1755030424647,0.18431035,119860.0,119850.0,1.52092753]
[1755030424859,0.18431035,119860.0,119850.0,1.72092753]
[1755030425071,0.18431035,119860.0,119850.0,1.52092753]
[1755030425283,0.18431035,119860.0,119850.0,1.72092753]
[1755030426526,0.18431035,119860.0,119850.0,1.52092753]
[1755030426791,0.18431035,119860.0,119850.0,1.72092753]
[1755030427844,0.18431035,119860.0,119850.0,1.26372771]
[1755030428096,0.18431035,119860.0,119850.0,1.74755479]
[1755030428534,0.18431035,119860.0,119850.0,1.72092753]
[1755030428743,0.18431035,119860.0,119850.0,1.21118726]
[1755030428966,0.18431035,119860.0,119850.0,1.72092753]
[1755030433441,0.18632035,119860.0,119850.0,1.01118726]
[1755030433641,0.18632035,119860.0,119850.0,1.00579726]
[1755030433882,0.18632035,119860.0,119850.0,1.51553753]
[1755030434109,0.18632035,119860.0,119850.0,1.71553753]
[1755030434341,0.18931035,119860.0,119850.0,1.71553753]
[1755030434585,0.18931035,119860.0,119850.0,1.18076826]
[1755030434969,0.18931035,119860.0,119850.0,1.69050853]
[1755030435728,0.18931035,119860.0,119850.0,1.68850853]
[1755030436595,0.18931035,119860.0,119850.0,1.88850853]
[1755030437004,0.18931035,119860.0,119850.0,1.48850853]
[1755030438071,0.18931035,119860.0,119850.0,0.97876826]
[1755030438277,0.18931035,119860.0,119850.0,1.48850853]
[1755030438980,0.18931035,119860.0,119850.0,0.97876826]
[1755030439191,0.18931035,119860.0,119850.0,1.48850853]
[1755030439635,0.18632035,119860.0,119850.0,1.48850853]
[1755030440059,0.18632035,119860.0,119850.0,1.49051853]
[1755030440268,0.18632035,119860.0,119850.0,1.49373853]
[1755030440476,0.18431035,119860.0,119850.0,1.49373853]
[1755030442267,0.18431035,119860.0,119850.0,0.98399826]
[1755030442512,0.18431035,119860.0,119850.0,1.49373853]
[1755030446769,0.18632035,119860.0,119850.0,1.49373853]
[1755030447390,0.18632035,119860.0,119850.0,1.48850853]
[1755030448238,0.18931035,119860.0,119850.0,1.48850853]
[1755030448660,0.18931035,119860.0,119850.0,0.97876826]
[1755030449298,0.18931035,119860.0,119850.0,1.48850853]
[1755030449977,0.18632035,119860.0,119850.0,1.48850853]
[1755030451290,0.18928035,119860.0,119850.0,1.48850853]
[1755030451504,0.18928035,119860.0,119850.0,0.97876826]
[1755030451705,0.18928035,119860.0,119850.0,1.48850853]
[1755030451916,0.18632035,119860.0,119850.0,1.48850853]
[1755030454173,0.18632035,119860.0,119850.0,0.97876826]
[1755030454308,0.18632035,119860.0,119850.0,1.48850853]
[1755030454502,0.18632035,119860.0,119850.0,1.49373853]
[1755030455375,0.18632035,119860.0,119850.0,0.98399826]
[1755030455578,0.18632035,119860.0,119850.0,1.49373853]
[1755030456400,0.18632035,119860.0,119850.0,1.49064853]
[1755030457381,0.18632035,119860.0,119850.0,1.49373853]
[1755030457696,0.18632035,119860.0,119850.0,1.48850853]
[1755030458315,0.18928035,119860.0,119850.0,0.97876826]
[1755030458542,0.18928035,119860.0,119850.0,0.82876826]
[1755030458787,0.18928035,119860.0,119850.0,0.74604501]
[1755030459414,0.18928035,119860.0,119850.0,1.25578528]
[1755030459642,0.18632035,119860.0,119850.0,0.74604501]
[1755030460102,0.18632035,119860.0,119850.0,1.25578528]
[1755030460313,0.18732035,119860.0,119850.0,1.25578528]
[1755030460527,0.18732035,119860.0,119850.0,0.74604501]
[1755030460738,0.18832035,119860.0,119850.0,0.74604501]
[1755030460950,0.18832035,119860.0,119850.0,1.25578528]
[1755030461426,0.19128035,119860.0,119850.0,0.74604501]
[1755030465256,0.19128035,119860.0,119850.0,0.32190444]
[1755030465472,0.1843382,119840.0,119830.0,0.20309]
[1755030465683,0.1864382,119840.0,119830.0,0.20523]
[1755030465910,0.1864382,119840.0,119830.0,0.71497027]
[1755030466122,0.1864382,119840.0,119830.0,0.20523]
[1755030466562,0.1864382,119840.0,119830.0,0.71497027]
[1755030466775,0.1864382,119840.0,119830.0,0.87737027]
[1755030466996,0.1864382,119840.0,119830.0,0.87837027]
[1755030467208,0.1864382,119840.0,119830.0,0.87937027]
[1755030467439,0.1864382,119840.0,119830.0,0.36963]
[1755030467651,0.1864382,119840.0,119830.0,0.87937027]
[1755030467870,0.1864382,119840.0,119830.0,0.96109352]
[1755030468265,0.1864382,119840.0,119830.0,0.1624]
[1755030468539,0.1864382,119840.0,119830.0,0.67214027]
[1755030468790,0.1864382,119840.0,119830.0,0.1706195]
[1755030469436,0.1864382,119840.0,119830.0,0.68035977]
[1755030469648,0.1864382,119840.0,119830.0,0.68558977]
[1755030469859,0.1843382,119840.0,119830.0,0.68558977]
[1755030470312,0.1863382,119840.0,119830.0,0.68558977]
[1755030470759,0.1863382,119840.0,119830.0,0.1758495]
[1755030470964,0.1863382,119840.0,119830.0,0.68558977]
[1755030471175,0.1863382,119840.0,119830.0,0.1758495]
[1755030471391,0.1863382,119840.0,119830.0,0.68558977]
[1755030472023,0.1863382,119840.0,119830.0,0.76831302]